bitfinex/quotes_ETHUSD_20260217
["timestamp","ask_amount","ask_price","bid_price","bid_amount"]
[1771347796236,1.51162522,1982.1,1980.9,1.74665794]
[1771347796369,1.51162522,1982.1,1981.2,0.001]
[1771347796907,0.25033669,1981.7,1980.7,1.26214833]
[1771347797205,1.596,1981.6,1980.4,1.7565774]
[1771347797433,6.61453901,1981.4,1980.9,0.001]
[1771347797712,6.61453901,1981.4,1980.3,1.26239074]
[1771347797882,6.61453901,1981.4,1980.2,1.26244971]
[1771347798073,0.1024,1981.5,1980.2,1.26244971]
[1771347798270,0.1024,1981.5,1980.2,1.75665588]
[1771347798875,1.26173412,1981.4,1980.3,0.49420617]
[1771347799071,0.25033669,1981.3,1980.0,1.75683243]
[1771347799307,11.866954,1981.0,1979.7,0.49420617]
[1771347799613,11.866954,1981.0,1979.2,6.61453901]
[1771347799614,0.1024,1980.4,1979.1,1.09189732]
[1771347799812,3.756506,1980.1,1979.1,1.09189732]
[1771347800103,0.909,1980.0,1979.1,2.35507783]
[1771347800320,0.909,1980.0,1979.1,1.09189732]
[1771347800816,1.26269003,1979.9,1979.1,1.09189732]
[1771347800980,0.688,1979.8,1979.1,1.09189732]
[1771347801608,0.688,1979.8,1979.1,2.35509271]
[1771347802471,0.688,1980.0,1979.1,2.35509271]
[1771347802673,0.688,1980.0,1979.2,0.49420617]
[1771347802872,0.688,1980.0,1979.3,1.2630728]
[1771347803073,1.95064692,1980.0,1979.2,5.54649738]
[1771347803313,1.95064692,1980.0,1979.3,1.2630728]
[1771347803482,0.688,1980.0,1979.3,1.2630728]
[1771347803815,1.94959484,1980.1,1979.3,1.2630728]
[1771347804017,1.26186149,1981.2,1980.0,0.49420617]
[1771347804186,5.0469281,1981.5,1979.8,0.49420617]
[1771347804187,6.8648757,1981.5,1979.8,0.49420617]
[1771347804509,0.1024,1981.3,1979.8,0.49420617]
[1771347805096,1.26186149,1981.2,1979.9,1.26269003]
[1771347805400,0.688,1981.1,1979.9,1.26269003]
[1771347805604,0.688,1981.1,1979.5,5.96076013]
[1771347805605,15.56688801,1980.9,1979.4,0.49420617]
[1771347805828,15.56688801,1980.9,1978.8,1.5159907]
[1771347805829,11.50038169,1980.5,1979.2,1.26313662]
[1771347805974,6.71693901,1980.3,1979.1,2.35505708]
[1771347806180,0.91,1980.2,1979.1,1.09189732]
[1771347806375,0.91,1980.2,1979.1,2.35508729]
[1771347807293,1.26256249,1980.1,1979.1,2.35508729]
[1771347808289,0.688,1980.3,1979.2,0.49420617]
[1771347808479,0.688,1980.3,1979.3,0.49420617]
[1771347809006,0.688,1980.6,1979.6,0.49420617]
[1771347809421,0.688,1980.6,1979.8,0.49420617]
[1771347811419,0.688,1980.6,1979.9,1.26269003]
[1771347811587,0.0011,1980.8,1979.9,1.26269003]
[1771347811783,0.687,1980.7,1979.9,1.26269003]
[1771347812398,0.0011,1980.8,1980.0,0.49420617]
[1771347812600,0.6871,1980.8,1980.0,0.49420617]
[1771347812798,0.0011,1980.8,1980.0,0.49420617]
[1771347813113,0.0011,1980.8,1980.1,0.49420617]
[1771347813302,0.0011,1980.8,1980.2,1.26249873]
[1771347813506,0.0011,1980.8,1980.2,1.7567049]
[1771347814005,0.0011,1980.8,1980.3,0.49420617]
[1771347814590,0.0011,1980.8,1980.2,1.26249873]
[1771347814989,0.0011,1980.8,1979.6,0.49420617]
[1771347815187,15.533445,1980.7,1979.4,5.0518604]
[1771347815386,1.26224376,1980.6,1979.4,5.0518604]
[1771347815722,1.594,1980.5,1979.4,5.54606657]
[1771347817317,5.30041174,1980.8,1979.3,0.49420617]
[1771347817491,2.85624376,1980.7,1979.3,0.49420617]
[1771347819450,1.26224376,1980.7,1979.5,0.49420617]
[1771347819736,1.594,1980.6,1979.4,1.26300899]
[1771347820511,1.594,1980.6,1979.4,1.75721516]
[1771347821033,1.594,1980.6,1979.5,0.49420617]
[1771347821729,0.683,1980.5,1979.7,0.49420617]
[1771347823400,0.0011,1980.7,1979.7,0.49420617]
[1771347823598,0.0011,1980.7,1979.8,1.75695998]
[1771347825617,0.0011,1980.7,1980.0,1.71705669]
[1771347826735,0.0011,1980.7,1980.1,0.45443043]
[1771347828014,0.0011,1980.7,1980.2,1.26249873]
[1771347828215,0.0011,1980.9,1980.3,0.45443043]
[1771347828415,0.0011,1980.9,1980.4,0.45443043]
[1771347829135,0.00781917,1980.9,1980.4,0.45443043]
[1771347830119,0.0011,1981.1,1980.7,0.45443043]
[1771347830635,1.587,1981.9,1980.7,0.45443043]
[1771347832409,2.84847059,1981.9,1980.9,0.49549059]
[1771347833235,1.587,1981.9,1980.9,0.49549059]
[1771347833539,0.677,1982.0,1980.9,0.49549059]
[1771347833838,0.677,1982.0,1980.8,1.26211631]
[1771347833839,7.29202854,1982.0,1980.8,1.26211631]
[1771347834025,0.677,1982.0,1980.8,1.7576069]
[1771347834436,1.26141581,1981.9,1980.8,1.7576069]
[1771347835144,0.0011,1981.0,1980.8,1.7576069]
[1771347835450,0.0011,1981.1,1980.8,1.7576069]
[1771347835650,0.0011,1981.1,1980.8,1.26211631]
[1771347836322,0.0011,1981.3,1980.8,1.7576069]
[1771347836519,1.93848701,1981.8,1980.9,0.49549059]
[1771347839043,1.93848701,1981.8,1981.0,1.26198889]
[1771347840044,0.677,1981.8,1981.0,1.75747948]
[1771347840243,0.675,1982.0,1981.1,0.49549059]
[1771347840545,1.93635229,1982.0,1980.9,1.26201683]
[1771347840850,2.18668898,1982.0,1980.9,1.26201683]
[1771347841344,17.84903069,1981.9,1980.7,1.26212929]
[1771347841645,0.25033669,1981.6,1980.1,0.49549059]
[1771347842323,9.07734169,1981.5,1980.1,0.49549059]
[1771347842527,1.585,1981.4,1980.1,0.49549059]
[1771347843114,1.2617978,1981.3,1980.2,1.26249873]
[1771347843556,2.84678378,1981.4,1980.3,0.49549059]
[1771347844159,1.585,1981.4,1980.5,0.49549059]
[1771347844325,2.84674006,1981.4,1980.5,0.49549059]
[1771347844727,2.84674006,1981.4,1980.3,0.497]
[1771347845142,2.84674006,1981.4,1980.3,0.99249059]
[1771347845359,2.84674006,1981.4,1980.4,1.26237123]
[1771347846951,2.84674006,1981.4,1980.4,0.001]
[1771347846952,3.09707675,1981.4,1980.4,0.001]
[1771347847267,0.0011,1981.3,1980.4,0.001]
[1771347847778,0.0011,1981.3,1980.4,0.49649059]
[1771347847939,0.6781,1981.3,1980.4,0.49649059]
[1771347848444,0.0011,1981.3,1980.4,0.49649059]
[1771347848832,0.0011,1981.3,1980.6,0.49549059]
[1771347849460,0.0011,1981.3,1980.8,0.49549059]
[1771347851643,0.0011,1981.3,1980.9,1.2620526]
[1771347851969,0.0011,1981.6,1980.9,1.2620526]
[1771347852139,0.0011,1981.6,1981.1,0.49549059]
[1771347853069,5.04436477,1982.5,1981.0,0.49549059]
[1771347853268,1.93712276,1982.6,1981.3,0.49549059]
[1771347853469,1.93712276,1982.6,1981.5,0.49549059]
[1771347853775,1.93712276,1982.6,1981.6,1.26160678]
[1771347853972,1.93712276,1982.6,1981.6,1.75709737]
[1771347854168,0.6761,1982.6,1981.7,0.49549059]
[1771347854374,0.6761,1982.6,1981.9,0.47299299]
[1771347854552,0.0011,1982.6,1981.9,0.47299299]
[1771347855541,1.26207638,1982.6,1981.9,0.47299299]
[1771347855749,0.0011,1982.6,1981.8,1.2614499]
[1771347857376,0.0011,1982.6,1981.8,1.73444289]
[1771347857574,0.0011,1982.6,1981.9,0.47299299]
[1771347857773,0.0011,1982.6,1982.0,1.26135216]
[1771347858867,0.0011,1982.6,1981.7,1.26149921]
[1771347859744,1.26207044,1982.6,1981.7,1.26149921]
[1771347859948,1.26207044,1982.6,1981.7,1.7344922]
[1771347860176,0.0011,1982.6,1981.8,0.47299299]
[1771347860385,0.0011,1982.5,1981.8,0.47299299]
[1771347861576,0.0011,1982.5,1981.8,0.97499299]
[1771347861901,0.0011,1982.5,1981.7,0.47299299]
[1771347864269,0.0011,1982.7,1982.0,0.47299299]
[1771347864470,0.0011,1982.7,1982.1,0.97499299]
[1771347865077,0.0011,1982.7,1982.1,0.502]
[1771347865276,0.0011,1982.7,1982.2,0.47299299]
[1771347866391,0.0011,1982.7,1982.3,1.26116127]
[1771347870192,0.0011,1982.9,1982.4,0.47299299]
[1771347870497,0.0011,1982.9,1982.3,1.26116127]
[1771347870660,0.0011,1982.9,1982.3,0.508]
[1771347870860,0.0011,1982.9,1982.2,5.5527249]
[1771347871892,0.0011,1982.9,1982.2,0.508]
[1771347872093,0.0011,1982.9,1982.0,0.509]
[1771347872406,0.0011,1982.9,1981.9,1.26135216]
[1771347872693,0.25143669,1982.7,1981.8,1.26143349]
[1771347874486,0.25143669,1982.7,1981.7,1.26253704]
[1771347874686,1.51240713,1982.6,1981.7,0.001]
[1771347874990,0.25143669,1982.4,1981.7,0.001]
[1771347875492,0.91443669,1982.3,1981.7,0.001]
[1771347875695,0.25143669,1982.2,1981.7,0.001]
[1771347876696,1.26128853,1982.1,1981.7,0.001]
[1771347877194,1.26128853,1982.1,1981.5,0.001]
[1771347877195,0.25143669,1982.0,1981.5,0.001]
[1771347878993,1.26141581,1981.9,1981.5,0.001]
[1771347880501,0.665,1981.8,1980.8,1.7351093]
[1771347881409,1.26154311,1981.7,1980.8,1.7351093]
[1771347884104,1.5129798,1981.7,1980.7,1.26214049]
[1771347884280,0.25143669,1981.6,1980.5,1.73529443]
[1771347884481,0.25143669,1981.6,1980.4,1.26331896]
[1771347884691,0.25143669,1981.6,1980.4,0.001]
[1771347884890,0.25143669,1981.4,1980.4,0.001]
[1771347885094,0.91643669,1981.3,1980.4,0.001]
[1771347885508,0.91643669,1981.3,1980.4,1.26336391]
[1771347885681,1.92686149,1981.2,1980.4,0.001]
[1771347885883,1.92686149,1981.2,1980.9,0.001]
[1771347886196,1.92686149,1981.2,1980.4,0.001]
[1771347886515,1.92686149,1981.2,1980.8,0.001]
[1771347891523,1.9268625,1981.2,1980.8,0.001]
[1771347892519,1.9348625,1981.2,1980.8,0.001]
[1771347893422,0.25143669,1981.7,1980.8,0.001]
[1771347893622,0.674,1981.6,1980.8,0.45746727]
[1771347894488,1.26167045,1981.5,1980.8,1.71957748]
[1771347895395,0.674,1981.6,1980.9,0.45646727]
[1771347895596,1.93562264,1981.6,1980.9,0.45646727]
[1771347896005,1.93562264,1981.6,1980.8,1.26311021]
[1771347896205,2.18705933,1981.6,1980.8,0.001]
[1771347896404,2.18705933,1981.6,1980.8,1.26308862]
[1771347896830,2.18705933,1981.6,1980.8,0.001]
[1771347897321,1.93562264,1981.6,1980.8,0.45746727]
[1771347897623,1.93561394,1981.6,1980.8,0.45746727]
[1771347898023,1.26161394,1981.6,1980.8,0.45746727]
[1771347898602,1.26161394,1981.6,1980.9,0.45746727]
[1771347899098,0.0011,1981.5,1981.0,1.26198889]
[1771347899319,0.0011,1981.5,1980.9,0.001]
[1771347900320,0.25253669,1981.5,1980.9,0.001]
[1771347901004,1.26173412,1981.4,1980.9,0.001]
[1771347901206,0.673,1981.3,1980.9,0.001]
[1771347902313,0.674,1981.3,1980.9,0.001]
[1771347902511,0.0011,1981.5,1980.9,0.001]
[1771347902714,0.674,1981.4,1980.9,0.001]
[1771347903027,1.93573706,1981.4,1980.9,1.2630526]
[1771347903412,1.93573706,1981.4,1980.9,0.001]
[1771347903730,0.0011,1981.5,1980.9,0.45746727]
[1771347904234,6.20538973,1982.2,1980.9,0.45746727]
[1771347904235,0.0011,1982.3,1981.3,0.45646727]
[1771347904434,0.0011,1982.3,1981.4,0.45646727]
[1771347904932,0.0011,1982.3,1981.6,0.45646727]
[1771347905137,0.0011,1982.3,1981.5,1.26167045]
[1771347905712,0.0011,1982.3,1981.5,1.71813772]
[1771347906120,0.0011,1982.3,1981.6,0.45646727]
[1771347907013,0.0011,1982.3,1981.8,0.45646727]
[1771347907231,0.0011,1982.4,1981.8,0.45646727]
[1771347907232,0.0011,1982.6,1981.9,0.45646727]
[1771347907606,0.0011,1982.8,1982.2,0.45646727]
[1771347907940,1.26194815,1982.8,1982.0,0.501]
[1771347908134,1.26194815,1982.8,1982.0,0.45646727]
[1771347908527,1.26194815,1982.8,1981.7,2.21901038]
[1771347908720,0.0011,1982.8,1981.8,0.45646727]
[1771347909042,0.0011,1982.8,1982.0,0.45646727]
[1771347911343,0.0011,1982.8,1982.1,1.26128853]
[1771347911638,0.0011,1982.8,1982.1,1.7177558]
[1771347912233,0.0011,1982.8,1982.0,1.26130733]
[1771347913039,0.0011,1982.7,1982.0,1.26130733]
[1771347913225,0.0011,1982.7,1981.9,1.2613897]
[1771347913420,0.0011,1982.7,1982.0,0.45646727]
[1771347915120,0.0011,1982.7,1982.2,0.45369786]
[1771347915316,0.0011,1982.7,1982.4,1.71479551]
[1771347915515,0.0011,1982.9,1982.5,0.45369786]
[1771347916414,0.0011,1983.1,1982.5,0.45369786]
[1771347916614,0.0011,1983.1,1982.5,0.95569786]
[1771347917051,0.0011,1983.1,1982.6,0.45369786]
[1771347917349,1.26175869,1983.1,1982.3,0.45369786]
[1771347917650,0.0011,1983.1,1982.5,0.45369786]
[1771347918640,0.0011,1983.1,1982.6,0.503]
[1771347919327,0.0011,1983.1,1982.7,1.26090684]
[1771347920523,0.0011,1983.1,1982.7,1.7146047]
[1771347921625,1.26026495,1983.8,1982.8,0.45369786]
[1771347922962,7.77316374,1984.6,1983.3,0.45369786]
[1771347923172,0.665,1984.4,1983.3,0.45369786]
[1771347923466,1.25989013,1984.3,1983.5,1.26039828]
[1771347923644,1.25989013,1984.3,1983.5,1.71409614]
[1771347923868,1.51352682,1984.3,1983.2,2.22023658]
[1771347924164,3.172512,1983.9,1982.9,0.506]
[1771347924335,3.65311,1983.9,1982.9,0.506]
[1771347924527,3.40211,1983.9,1982.9,0.506]
[1771347924729,0.665,1983.8,1983.0,0.45369786]
[1771347925427,0.0011,1983.1,1983.0,0.45369786]
[1771347925632,5.03941544,1984.4,1983.1,0.45369786]
[1771347925633,1.2600383,1984.1,1983.1,0.45369786]
[1771347925846,0.0011,1983.3,1983.1,0.45369786]
[1771347926045,1.2600383,1984.1,1983.1,0.45369786]
[1771347926730,1.51477499,1984.1,1983.0,1.26071608]
[1771347927338,1.2600383,1984.1,1983.1,0.45369786]
[1771347927531,1.92399437,1984.2,1983.3,0.45369786]
[1771347927731,2.17873106,1984.2,1983.1,1.26060731]
[1771347927949,0.25473669,1984.1,1982.9,0.507]
[1771347928225,0.25473669,1984.1,1982.8,0.507]
[1771347929441,9.63205869,1983.8,1982.7,0.507]
[1771347929634,1.26033474,1983.6,1982.6,1.26092527]
[1771347929830,5.728629,1983.5,1982.4,0.45369786]
[1771347930035,0.25473669,1983.5,1982.4,1.26109156]
[1771347930236,8.975212,1983.3,1982.2,5.04476781]
[1771347930469,0.665,1983.2,1982.1,2.22193932]
[1771347930638,0.91973669,1983.2,1982.0,1.26132401]
[1771347930833,0.25473669,1983.1,1981.9,1.26136495]
[1771347931042,0.25473669,1983.1,1981.9,1.76836495]
[1771347931577,0.25473669,1983.1,1981.9,2.22206281]
[1771347931734,0.665,1983.0,1982.0,0.45369786]
[1771347932565,0.665,1983.0,1981.9,1.26136495]
[1771347932770,0.91973669,1983.0,1981.8,0.508]
[1771347932978,0.665,1983.0,1981.8,0.45369786]
[1771347933755,1.26077966,1982.9,1981.8,1.71513195]
[1771347934269,0.25473669,1982.8,1981.7,1.26253953]
[1771347934595,0.25473669,1982.8,1981.7,0.509]
[1771347934900,0.25473669,1982.8,1981.7,0.001]
[1771347934901,0.25473669,1982.6,1981.7,0.001]
[1771347935098,0.665,1982.5,1981.7,0.001]
[1771347935597,0.665,1982.5,1981.7,1.26253963]
[1771347935783,1.26109765,1982.4,1981.7,0.001]
[1771347936473,1.92608602,1982.5,1981.7,0.001]
[1771347936680,1.92608602,1982.5,1981.7,0.45469786]
[1771347937100,1.92608602,1982.5,1981.8,0.001]
[1771347937101,0.665,1982.5,1981.8,0.001]
[1771347937402,0.665,1982.5,1981.8,0.45469786]
[1771347937767,1.92604066,1982.5,1981.8,0.45469786]
[1771347937967,1.92604066,1982.5,1981.8,0.001]
[1771347938363,1.92604066,1982.5,1981.8,1.26246052]
[1771347939112,1.92603477,1982.5,1981.8,1.71615838]
[1771347940000,0.665,1982.5,1981.8,1.71615838]
[1771347940173,1.92603584,1982.5,1981.8,1.71615838]
[1771347940372,0.665,1982.5,1981.8,1.71615838]
[1771347942169,1.92604785,1982.5,1981.8,0.001]
[1771347944403,1.92603637,1982.5,1981.8,0.001]
[1771347944876,0.665,1982.5,1981.8,0.49366341]
[1771347945489,1.92604169,1982.5,1981.8,0.49366341]
[1771347946188,0.665,1982.5,1981.9,1.26141581]
[1771347946415,0.665,1982.5,1981.9,1.75407922]
[1771347946575,0.665,1982.5,1982.0,0.49266341]
[1771347947010,1.26094402,1982.7,1982.0,0.49266341]
[1771347947214,1.92477966,1982.9,1981.8,1.262429]
[1771347947418,2.17951635,1982.9,1981.8,1.262429]
[1771347947908,2.17951635,1982.9,1981.8,1.26247661]
[1771347948078,1.92477966,1982.9,1981.9,0.49266341]
[1771347948278,0.664,1982.9,1982.1,0.49266341]
[1771347948506,0.0011,1983.0,1982.2,0.49266341]
[1771347949271,0.0011,1983.0,1982.4,0.49266341]
[1771347949584,0.0011,1983.0,1982.6,0.49266341]
[1771347950303,0.0011,1983.2,1982.7,1.26090684]
[1771347950507,0.0011,1983.2,1982.8,0.49266341]
[1771347951482,0.0011,1983.2,1982.4,1.75376106]
[1771347952117,0.0011,1983.2,1982.5,0.49266341]
[1771347953017,0.0011,1983.2,1982.5,1.75365153]
[1771347955886,0.0011,1983.2,1982.6,0.48222519]
[1771347956218,0.0011,1983.2,1982.5,1.26098812]
[1771347956519,0.0011,1983.2,1982.6,0.512]
[1771347957218,0.0011,1983.2,1982.7,1.26090684]
[1771347957813,0.0011,1983.2,1982.4,1.26109765]
[1771347958017,0.0011,1983.2,1982.6,0.513]
[1771347959401,0.0011,1983.2,1982.7,1.26090684]
[1771347959829,0.0011,1983.2,1982.6,1.77393198]
[1771347960038,0.0011,1983.2,1982.5,1.26098668]
[1771347960843,0.0011,1983.2,1982.4,1.77405534]
[1771347961003,0.25583669,1983.2,1982.3,0.513]
[1771347961200,0.0011,1983.2,1982.3,0.513]
[1771347961405,0.0011,1983.2,1982.4,1.26109765]
[1771347961734,0.25473669,1983.1,1982.0,0.513]
[1771347962099,0.25473669,1983.1,1982.0,0.48222519]
[1771347962431,0.25473669,1983.1,1981.9,1.26141581]
[1771347962432,0.25473669,1983.1,1982.7,0.001]
[1771347962629,0.25583669,1983.1,1981.9,1.77441581]
[1771347962929,0.25583669,1983.1,1982.5,0.001]
[1771347963427,1.26071608,1983.0,1982.5,0.001]
[1771347963624,1.26071608,1983.0,1981.9,1.743641]
[1771347963625,0.25473669,1982.9,1981.9,1.743641]
[1771347963829,0.25473669,1982.9,1981.9,1.26141581]
[1771347964012,1.26071608,1983.0,1981.9,1.743641]
[1771347964532,1.51545277,1983.0,1981.9,1.743641]
[1771347965102,1.26071608,1983.0,1982.0,0.48222519]
[1771347965522,0.0011,1983.1,1982.2,0.48222519]
[1771347965714,0.0011,1983.1,1982.3,0.48222519]
[1771347966404,0.0011,1983.1,1982.2,0.514]
[1771347966604,0.0011,1983.1,1982.1,1.26128853]
[1771347966605,0.25583669,1983.1,1982.1,1.26128853]
[1771347967034,0.25583669,1983.1,1981.8,0.001]
[1771347967233,0.25583669,1983.1,1981.8,1.77643277]
[1771347967416,1.26084325,1982.8,1981.8,2.25865796]
[1771347967607,0.657,1982.7,1981.8,2.25865796]
[1771347968314,0.657,1982.7,1981.8,0.001]
[1771347968520,0.91173669,1982.7,1981.8,0.001]
[1771347968711,0.25473669,1982.6,1981.8,0.001]
[1771347969211,0.25473669,1982.4,1981.8,0.001]
[1771347969422,1.26116127,1982.3,1981.8,0.001]
[1771347969862,0.657,1982.2,1981.5,0.001]
[1771347970005,6.19926569,1982.0,1981.4,0.001]
[1771347970332,6.85679019,1981.8,1980.8,0.001]
[1771347970543,12.786394,1981.6,1980.8,0.001]
[1771347970747,0.1024,1982.0,1980.9,1.2630523]
[1771347970903,0.657,1981.6,1980.9,1.74527749]
[1771347971108,0.657,1981.6,1980.9,0.001]
[1771347971502,1.26167045,1981.5,1980.9,0.001]
[1771347972646,1.91864716,1981.6,1980.9,0.001]
[1771347972832,1.91941581,1981.9,1980.9,0.48322519]
[1771347974121,8.11795146,1982.4,1981.0,1.74421408]
[1771347974450,5.248077,1982.2,1981.1,0.48222519]
[1771347974746,3.740577,1982.2,1981.1,0.48222519]
[1771347974929,6.61168494,1982.3,1981.1,0.48222519]
[1771347975137,0.659,1982.3,1981.1,0.48222519]
[1771347975330,0.659,1982.3,1981.3,0.46784397]
[1771347975643,0.659,1982.3,1981.5,0.46784397]
[1771347976422,1.92019112,1982.3,1981.5,1.72947136]
[1771347976616,1.92019112,1982.3,1981.5,1.26162739]
[1771347977018,1.92019112,1982.3,1981.3,1.26175745]
[1771347977736,1.92019112,1982.3,1981.2,2.24265848]
[1771347978344,1.92019112,1982.3,1981.2,1.72965848]
[1771347978920,1.92019112,1982.3,1981.3,0.46784397]
[1771347980033,0.0011,1982.9,1981.3,0.46784397]
[1771347980244,5.70355845,1982.8,1981.6,0.46784397]
[1771347980431,5.70355845,1982.8,1981.7,1.26154311]
[1771347981659,0.661,1982.8,1981.8,0.46784397]
[1771347982029,0.661,1982.8,1981.8,0.98184397]
[1771347982229,0.661,1982.8,1981.8,0.46784397]
[1771347982532,1.26090684,1982.7,1981.9,1.26141581]
[1771347983749,1.92188546,1982.8,1981.9,1.26141581]
[1771347984061,0.6621,1982.9,1982.0,0.46784397]
[1771347984216,0.6621,1982.9,1982.2,0.46784397]
[1771347984217,0.0011,1982.9,1982.2,0.46784397]
[1771347984416,0.0011,1982.9,1982.3,1.72900524]
[1771347984720,0.0011,1982.9,1982.4,0.46784397]
[1771347984920,0.0011,1983.1,1982.6,0.46784397]
[1771347986619,0.0011,1983.1,1982.8,0.46784397]
[1771347988141,0.0011,1982.9,1982.8,0.46784397]
[1771347988458,0.0011,1983.1,1982.8,0.46784397]
[1771347988627,0.0011,1983.1,1982.5,5.51172574]
[1771347988824,0.0011,1983.1,1982.6,1.26097044]
[1771347989152,0.0011,1983.1,1982.6,1.77897044]
[1771347989342,0.0011,1983.1,1982.2,0.46784397]
[1771347989649,0.0011,1983.1,1982.3,0.518]
[1771347990029,0.0011,1983.1,1982.3,0.98584397]
[1771347990349,0.0011,1983.1,1982.4,0.46784397]
[1771347990553,0.0011,1983.1,1982.6,0.46784397]
[1771347990758,0.0011,1983.1,1982.7,0.98584397]
[1771347991871,0.0011,1983.1,1982.5,1.26103404]
[1771347992030,0.0011,1983.1,1982.6,0.518]
[1771347992840,0.0011,1983.1,1982.7,1.26090684]
[1771347993051,0.0011,1983.3,1982.8,0.46784397]
[1771347993430,0.0011,1983.3,1982.7,1.77990684]
[1771347994026,0.0011,1983.3,1982.8,0.46784397]
[1771347994926,0.0011,1983.3,1982.9,1.72862363]
[1771347995885,0.0011,1983.3,1982.9,1.26077966]
[1771347997771,0.0011,1983.3,1982.6,1.26097044]
[1771347998305,0.0011,1983.3,1982.5,0.523]
[1771347998306,0.25583669,1983.3,1982.5,0.523]
[1771347998444,0.25583669,1983.3,1982.1,0.523]
[1771347998784,0.25473669,1983.1,1982.0,1.78428853]
[1771347999145,1.26071608,1983.0,1982.0,1.78428853]
[1771347999476,1.26071608,1983.0,1982.0,1.26128853]
[1771347999669,1.26071608,1983.0,1982.0,1.78428853]
[1771348000276,1.26071608,1983.0,1982.1,0.001]
[1771348001778,0.652,1983.1,1982.1,0.46884397]
[1771348002080,1.9126978,1983.1,1982.1,0.46884397]
[1771348002480,1.9126978,1983.1,1982.2,0.525]
[1771348003563,1.9126978,1983.1,1982.3,1.26116127]
[1771348003791,0.652,1983.1,1982.3,1.26116127]
[1771348004089,0.652,1983.1,1982.3,1.72900524]
[1771348004288,1.91265554,1983.1,1982.3,1.72900524]
[1771348004473,0.652,1983.1,1982.3,1.72900524]
[1771348004668,1.91268195,1983.1,1982.3,1.72900524]
[1771348005393,1.91265865,1983.1,1982.3,1.72900524]
[1771348005567,0.652,1983.1,1982.3,1.72900524]
[1771348005963,1.91266052,1983.1,1982.3,1.72900524]
[1771348006871,1.26171787,1983.2,1982.3,1.26116127]
[1771348007365,0.0011,1983.2,1982.3,1.75701042]
[1771348007570,0.0011,1983.2,1982.4,0.49584915]
[1771348007802,0.0011,1983.2,1982.5,1.26103404]
[1771348008168,0.0011,1983.2,1982.5,1.75688319]
[1771348008365,0.0011,1983.2,1982.6,1.02084915]
[1771348008575,0.0011,1983.2,1982.7,0.49584915]
[1771348009809,0.0011,1983.2,1982.8,1.26084325]
[1771348010397,0.0011,1983.2,1982.7,1.26085512]
[1771348010569,0.0011,1983.2,1982.7,1.78685512]
[1771348011434,0.0011,1983.2,1982.5,1.26099837]
[1771348011566,0.0011,1983.2,1982.1,0.001]
[1771348011567,0.25583669,1983.2,1982.1,1.26227566]
[1771348011772,1.26065251,1983.1,1982.1,1.26227566]
[1771348012296,1.5153892,1983.1,1982.1,1.26227566]
[1771348012819,0.25473669,1982.9,1982.1,0.001]
[1771348012969,0.90373669,1982.8,1982.1,0.001]
[1771348013883,1.26090684,1982.7,1982.1,0.001]
[1771348014371,1.26090684,1982.7,1982.5,0.001]
[1771348014571,1.26090684,1982.7,1982.1,0.001]
[1771348020912,1.90988858,1982.8,1982.1,0.001]
[1771348021120,1.90985358,1982.8,1982.1,0.001]
[1771348021281,2.16459027,1982.8,1982.1,0.001]
[1771348022081,1.90985358,1982.8,1982.1,0.001]
[1771348022508,5.043373,1983.0,1982.1,0.001]
[1771348022710,0.90973669,1982.9,1982.1,0.001]
[1771348022910,12.65110869,1982.6,1981.8,0.001]
[1771348023209,0.655,1982.5,1981.8,0.001]
[1771348024690,1.26109765,1982.4,1981.8,0.48861495]
[1771348025292,0.655,1982.5,1981.8,0.48861495]
[1771348025491,1.91603728,1982.5,1981.8,0.48861495]
[1771348025918,1.91603728,1982.5,1982.2,0.001]
[1771348026282,2.17077397,1982.5,1981.8,0.001]
[1771348026495,2.17077397,1982.5,1982.0,0.001]
[1771348027099,2.17077397,1982.5,1981.8,0.001]
[1771348027603,1.91603728,1982.5,1981.8,0.001]
[1771348028322,5.0429158,1983.0,1981.8,0.48861495]
[1771348028491,1.91775251,1983.1,1981.9,0.48761495]
[1771348028685,0.6571,1983.1,1982.1,0.48761495]
[1771348028885,0.0011,1983.1,1982.3,0.48761495]
[1771348029110,0.0011,1983.1,1982.5,0.48761495]
[1771348030424,0.0011,1983.2,1982.6,0.48761495]
[1771348030725,0.0011,1983.2,1982.7,1.26090684]
[1771348030924,0.0011,1983.2,1982.7,1.74852179]
[1771348031424,0.0011,1983.2,1982.8,0.48761495]
[1771348031627,0.0011,1983.4,1982.9,0.48761495]
[1771348031823,0.655,1984.2,1983.0,0.48761495]
[1771348032420,0.655,1984.2,1983.0,7.64942539]
[1771348032619,0.655,1984.2,1983.1,0.48761495]
[1771348032799,0.655,1984.2,1983.4,0.48761495]
[1771348033314,1.91496025,1984.2,1983.4,0.48761495]
[1771348033516,12.311152,1984.0,1982.8,5.53073908]
[1771348033832,8.86309,1984.0,1982.8,5.53073908]
[1771348033995,8.86309,1984.0,1982.8,1.7484582]
[1771348034196,18.969655,1983.9,1982.6,5.04378919]
[1771348034399,8.578095,1983.8,1982.6,5.04378919]
[1771348034601,0.655,1983.7,1982.7,0.48213669]
[1771348034796,1.26008064,1984.0,1982.9,0.48213669]
[1771348035002,0.655,1984.2,1983.0,0.48213669]
[1771348035198,0.655,1984.2,1983.1,0.48213669]
[1771348036541,0.655,1984.2,1983.1,1.00413669]
[1771348037101,1.26001713,1984.1,1983.2,1.26058894]
[1771348038528,1.26111713,1984.1,1983.1,2.26475524]
[1771348038720,1.26111713,1984.1,1983.1,1.26061855]
[1771348038926,8.67876426,1984.1,1983.0,1.26066494]
[1771348039227,8.67876426,1984.1,1982.9,5.04299404]
[1771348039228,1.51695382,1984.1,1982.9,5.04299404]
[1771348039926,1.51695382,1984.1,1982.8,1.00313669]
[1771348040140,15.266572,1983.8,1982.6,0.522]
[1771348040299,0.655,1983.7,1982.6,0.522]
[1771348040721,0.655,1983.7,1982.6,1.00413669]
[1771348041430,1.26113206,1984.1,1982.9,0.48213669]
[1771348041636,1.26112473,1984.1,1982.9,0.48213669]
[1771348041932,0.0011,1984.1,1983.1,0.48213669]
[1771348042101,0.0011,1984.1,1983.3,0.48213669]
[1771348042718,0.0011,1984.1,1983.4,0.48213669]